[Event "Titled Tuesday Blitz November 01 Late 2022"]
[White "Shapiro, Daniel"]
[Black "Melikhov, Evgeny V."]
[WhiteFideId "2001780"]
[BlackFideId "4122046"]
[WhiteElo "2297"]
[BlackElo "2169"]
[Result "1-0"]
[Round "11"]
[TimeControl "180+1"]
[Date "2022.11.02"]
[WhiteClock "0:00:04"]
[BlackClock "0:00:02"]

1. d4 {[%clk 0:03:00]}  Nf6 {[%clk 0:02:57]} 2. c4 {[%clk 0:03:00]}  e6 {[%clk 0:02:55]} 3. g3 {[%clk 0:03:00]}  d5 {[%clk 0:02:54]} 4. Nf3 {[%clk 0:03:00]}  dxc4 {[%clk 0:02:53]} 5. Bg2 {[%clk 0:02:59]}  Nc6 {[%clk 0:02:52]} 6. Qa4 {[%clk 0:02:58]}  Bb4+ {[%clk 0:02:51]} 7. Bd2 {[%clk 0:02:58]}  Bd6 {[%clk 0:02:51]} 8. Qxc4 {[%clk 0:02:56]}  O-O {[%clk 0:02:50]} 9. Bf4 {[%clk 0:02:55]}  Qe7 {[%clk 0:02:34]} 10. Ne5 {[%clk 0:02:46]}  Bxe5 {[%clk 0:02:24]} 11. Bxe5 {[%clk 0:02:30]}  Nxe5 {[%clk 0:02:09]} 12. dxe5 {[%clk 0:02:30]}  Nd5 {[%clk 0:01:58]} 13. O-O {[%clk 0:02:18]}  c6 {[%clk 0:01:52]} 14. Nd2 {[%clk 0:02:17]}  f5 {[%clk 0:01:34]} 15. e4 {[%clk 0:01:59]}  Nb6 {[%clk 0:01:33]} 16. Qb3 {[%clk 0:01:54]}  f4 {[%clk 0:01:33]} 17. a4 {[%clk 0:01:49]}  Nd7 {[%clk 0:01:13]} 18. Nc4 {[%clk 0:01:39]}  Qc5 {[%clk 0:00:57]} 19. Rad1 {[%clk 0:01:16]}  Nxe5 {[%clk 0:00:51]} 20. Nd6 {[%clk 0:01:09]}  f3 {[%clk 0:00:22]} 21. Nxc8 {[%clk 0:01:03]}  fxg2 {[%clk 0:00:19]} 22. Qxe6+ {[%clk 0:01:00]}  Kh8 {[%clk 0:00:18]} 23. Kxg2 {[%clk 0:00:38]}  Raxc8 {[%clk 0:00:18]} 24. f4 {[%clk 0:00:37]}  Ng6 {[%clk 0:00:12]} 25. Rd7 {[%clk 0:00:29]}  Rce8 {[%clk 0:00:11]} 26. Qg4 {[%clk 0:00:14]}  Qc2+ {[%clk 0:00:10]} 27. Rf2 {[%clk 0:00:12]}  Qxe4+ {[%clk 0:00:10]} 28. Rf3 {[%clk 0:00:10]}  Qc2+ {[%clk 0:00:09]} 29. Rf2 {[%clk 0:00:10]}  Qf5 {[%clk 0:00:08]} 30. Qxf5 {[%clk 0:00:09]}  Rxf5 {[%clk 0:00:08]} 31. Rxb7 {[%clk 0:00:10]}  Rd5 {[%clk 0:00:07]} 32. Rc2 {[%clk 0:00:09]}  h6 {[%clk 0:00:05]} 33. Rxa7 {[%clk 0:00:09]}  Re3 {[%clk 0:00:04]} 34. Rxc6 {[%clk 0:00:09]}  Rd2+ {[%clk 0:00:04]} 35. Kh3 {[%clk 0:00:09]}  Nxf4+ {[%clk 0:00:03]} 36. Kg4 {[%clk 0:00:09]}  Nd3 {[%clk 0:00:03]} 37. Rc8+ {[%clk 0:00:08]}  Kh7 {[%clk 0:00:03]} 38. Rcc7 {[%clk 0:00:05]}  Nf2+ {[%clk 0:00:02]} 39. Kf5 {[%clk 0:00:05]}  Rf3+ {[%clk 0:00:02]} 40. Ke5 {[%clk 0:00:04]}  Re2+ {[%clk 0:00:02]} 41. Kd5 {[%clk 0:00:04]}  Rd3+ {[%clk 0:00:02]} 42. Kc4 {[%clk 0:00:04]}  Rc2+ {[%clk 0:00:02]} 43. Kb5 {[%clk 0:00:04]} 1-0


[Site "https://www.chess.com"]

[Event "Titled Tuesday Blitz November 01 Late 2022"]
[White "Shipov, Sergei"]
[Black "Galchenko, Matvey"]
[WhiteFideId "4113624"]
[BlackFideId "24175480"]
[WhiteElo "2778"]
[BlackElo "2423"]
[Result "1-0"]
[Round "11"]
[TimeControl "180+1"]
[Date "2022.11.01"]
[WhiteClock "0:01:02"]
[BlackClock "0:00:08"]

1. d4 {[%clk 0:03:00]}  d5 {[%clk 0:02:57]} 2. c4 {[%clk 0:03:01]}  e6 {[%clk 0:02:57]} 3. Nc3 {[%clk 0:03:01]}  c6 {[%clk 0:02:57]} 4. e4 {[%clk 0:03:01]}  dxe4 {[%clk 0:02:58]} 5. Nxe4 {[%clk 0:03:01]}  Bb4+ {[%clk 0:02:58]} 6. Bd2 {[%clk 0:03:02]}  Qxd4 {[%clk 0:02:58]} 7. Bxb4 {[%clk 0:03:02]}  Qxe4+ {[%clk 0:02:59]} 8. Be2 {[%clk 0:03:03]}  Na6 {[%clk 0:02:57]} 9. Ba5 {[%clk 0:03:03]}  b6 {[%clk 0:02:57]} 10. Qd6 {[%clk 0:03:00]}  Bd7 {[%clk 0:02:58]} 11. Bc3 {[%clk 0:02:48]}  f6 {[%clk 0:02:58]} 12. Nf3 {[%clk 0:02:47]}  Nh6 {[%clk 0:02:57]} 13. Nd2 {[%clk 0:02:45]}  Qf5 {[%clk 0:02:45]} 14. O-O-O {[%clk 0:02:16]}  Rd8 {[%clk 0:02:28]} 15. Qa3 {[%clk 0:02:08]}  Bc8 {[%clk 0:02:21]} 16. Rhe1 {[%clk 0:02:04]}  Kf7 {[%clk 0:02:04]} 17. Ne4 {[%clk 0:01:58]}  c5 {[%clk 0:01:33]} 18. Nd6+ {[%clk 0:01:57]}  Rxd6 {[%clk 0:01:34]} 19. Rxd6 {[%clk 0:01:57]}  Qxf2 {[%clk 0:01:26]} 20. Bf3 {[%clk 0:01:53]}  Nf5 {[%clk 0:01:22]} 21. Rdd1 {[%clk 0:01:53]}  Qh4 {[%clk 0:01:14]} 22. h3 {[%clk 0:01:49]}  Qxc4 {[%clk 0:01:11]} 23. Bh5+ {[%clk 0:01:45]}  g6 {[%clk 0:01:10]} 24. Be2 {[%clk 0:01:45]}  Qf4+ {[%clk 0:01:09]} 25. Kb1 {[%clk 0:01:39]}  c4 {[%clk 0:01:02]} 26. g4 {[%clk 0:01:33]}  Ne3 {[%clk 0:01:01]} 27. Rd4 {[%clk 0:01:32]}  Qg3 {[%clk 0:00:28]} 28. Rc1 {[%clk 0:01:26]}  Qc7 {[%clk 0:00:19]} 29. Bd2 {[%clk 0:01:23]}  Nd5 {[%clk 0:00:19]} 30. Rdxc4 {[%clk 0:01:23]}  Qe5 {[%clk 0:00:16]} 31. Rxc8 {[%clk 0:01:19]}  Rxc8 {[%clk 0:00:14]} 32. Rxc8 {[%clk 0:01:17]}  Nc5 {[%clk 0:00:15]} 33. Qf3 {[%clk 0:01:12]}  Na4 {[%clk 0:00:11]} 34. Bc1 {[%clk 0:01:11]}  Nc5 {[%clk 0:00:05]} 35. Bc4 {[%clk 0:01:10]}  Ne7 {[%clk 0:00:05]} 36. Rh8 {[%clk 0:01:06]}  Kg7 {[%clk 0:00:05]} 37. Re8 {[%clk 0:01:06]}  Kf7 {[%clk 0:00:06]} 38. Rd8 {[%clk 0:01:06]}  Qh2 {[%clk 0:00:05]} 39. Rd2 {[%clk 0:01:05]}  Qe5 {[%clk 0:00:06]} 40. Re2 {[%clk 0:01:05]}  Qd4 {[%clk 0:00:06]} 41. Qc3 {[%clk 0:01:03]}  Qd6 {[%clk 0:00:07]} 42. Rf2 {[%clk 0:01:03]}  Ne4 {[%clk 0:00:06]} 43. Qe3 {[%clk 0:01:01]}  Nxf2 {[%clk 0:00:06]} 44. Qxf2 {[%clk 0:01:01]}  Qc6 {[%clk 0:00:07]} 45. Qe2 {[%clk 0:01:01]}  Nc8 {[%clk 0:00:07]} 46. h4 {[%clk 0:01:00]}  Nd6 {[%clk 0:00:07]} 47. Bd3 {[%clk 0:01:01]}  Qd5 {[%clk 0:00:08]} 48. a3 {[%clk 0:01:00]}  Ne8 {[%clk 0:00:07]} 49. Qe3 {[%clk 0:01:00]}  Nc7 {[%clk 0:00:08]} 50. Bc2 {[%clk 0:01:00]}  Kg7 {[%clk 0:00:07]} 51. Qh6+ {[%clk 0:01:00]}  Kg8 {[%clk 0:00:08]} 52. h5 {[%clk 0:01:01]}  f5 {[%clk 0:00:04]} 53. hxg6 {[%clk 0:01:01]}  hxg6 {[%clk 0:00:05]} 54. Qxg6+ {[%clk 0:01:01]}  Kf8 {[%clk 0:00:05]} 55. gxf5 {[%clk 0:01:01]}  exf5 {[%clk 0:00:06]} 56. Qxf5+ {[%clk 0:01:02]}  Qxf5 {[%clk 0:00:06]} 57. Bxf5 {[%clk 0:01:02]}  Ke7 {[%clk 0:00:07]} 58. Bd3 {[%clk 0:01:02]}  Ke6 {[%clk 0:00:07]} 59. Kc2 {[%clk 0:01:02]}  Kd5 {[%clk 0:00:07]} 60. Bf4 {[%clk 0:01:02]}  Ne6 {[%clk 0:00:08]} 61. Be3 {[%clk 0:01:03]}  Kc6 {[%clk 0:00:08]} 62. Kc3 {[%clk 0:01:03]}  Kd5 {[%clk 0:00:08]} 63. Bc4+ {[%clk 0:01:02]} 1-0


[Site "https://www.chess.com"]

[Event "Titled Tuesday Blitz November 01 Late 2022"]
[White "Souleidis, Georgios"]
[Black "Malka, Samuel"]
[WhiteFideId "4206827"]
[BlackFideId "20643675"]
[WhiteElo "2401"]
[BlackElo "2460"]
[Result "1/2-1/2"]
[Round "11"]
[TimeControl "180+1"]
[Date "2022.11.02"]
[WhiteClock "0:00:06"]
[BlackClock "0:00:15"]

1. e4 {[%clk 0:03:00]}  c5 {[%clk 0:02:59]} 2. Be2 {[%clk 0:03:00]}  Nc6 {[%clk 0:02:52]} 3. d3 {[%clk 0:03:00]}  e6 {[%clk 0:02:52]} 4. f4 {[%clk 0:03:00]}  d5 {[%clk 0:02:51]} 5. Nf3 {[%clk 0:03:01]}  Bd6 {[%clk 0:02:46]} 6. O-O {[%clk 0:03:00]}  Nge7 {[%clk 0:02:44]} 7. c3 {[%clk 0:03:00]}  f6 {[%clk 0:02:40]} 8. a3 {[%clk 0:03:00]}  O-O {[%clk 0:02:39]} 9. Be3 {[%clk 0:02:58]}  b6 {[%clk 0:02:39]} 10. g3 {[%clk 0:02:58]}  Bb7 {[%clk 0:02:38]} 11. b4 {[%clk 0:02:57]}  d4 {[%clk 0:02:23]} 12. cxd4 {[%clk 0:02:54]}  cxd4 {[%clk 0:02:18]} 13. Bf2 {[%clk 0:02:47]}  e5 {[%clk 0:02:16]} 14. fxe5 {[%clk 0:02:46]}  Bxe5 {[%clk 0:02:03]} 15. Qb3+ {[%clk 0:02:40]}  Kh8 {[%clk 0:02:02]} 16. Nbd2 {[%clk 0:02:26]}  b5 {[%clk 0:01:58]} 17. Rac1 {[%clk 0:02:25]}  Qd6 {[%clk 0:01:51]} 18. Qb2 {[%clk 0:02:19]}  Rac8 {[%clk 0:01:46]} 19. Nb3 {[%clk 0:02:18]}  Rcd8 {[%clk 0:01:18]} 20. Nc5 {[%clk 0:01:59]}  Bc8 {[%clk 0:01:18]} 21. a4 {[%clk 0:01:32]}  a6 {[%clk 0:01:10]} 22. axb5 {[%clk 0:01:32]}  axb5 {[%clk 0:01:11]} 23. Kg2 {[%clk 0:01:17]}  f5 {[%clk 0:00:58]} 24. Nxe5 {[%clk 0:01:02]}  Qxe5 {[%clk 0:00:58]} 25. Bf3 {[%clk 0:00:35]}  f4 {[%clk 0:00:59]} 26. Nb3 {[%clk 0:00:32]}  Qf6 {[%clk 0:00:48]} 27. Rc5 {[%clk 0:00:28]}  Ne5 {[%clk 0:00:47]} 28. Bxd4 {[%clk 0:00:25]}  Rxd4 {[%clk 0:00:29]} 29. Qxd4 {[%clk 0:00:26]}  N7c6 {[%clk 0:00:25]} 30. Rxc6 {[%clk 0:00:25]}  Nxc6 {[%clk 0:00:22]} 31. Qxf6 {[%clk 0:00:25]}  gxf6 {[%clk 0:00:15]} 32. gxf4 {[%clk 0:00:22]}  Nxb4 {[%clk 0:00:16]} 33. Be2 {[%clk 0:00:22]}  Nc2 {[%clk 0:00:15]} 34. Rc1 {[%clk 0:00:20]}  Ne3+ {[%clk 0:00:16]} 35. Kf3 {[%clk 0:00:21]}  Ng4 {[%clk 0:00:15]} 36. Rxc8 {[%clk 0:00:18]}  Nxh2+ {[%clk 0:00:15]} 37. Kg2 {[%clk 0:00:19]}  Rxc8 {[%clk 0:00:15]} 38. Kxh2 {[%clk 0:00:18]}  Rc2 {[%clk 0:00:16]} 39. Nd4 {[%clk 0:00:18]}  Rd2 {[%clk 0:00:14]} 40. Kg3 {[%clk 0:00:18]}  b4 {[%clk 0:00:15]} 41. Kf3 {[%clk 0:00:18]}  Kg7 {[%clk 0:00:13]} 42. Ke3 {[%clk 0:00:19]}  Rb2 {[%clk 0:00:12]} 43. Bd1 {[%clk 0:00:19]}  Rb1 {[%clk 0:00:12]} 44. Bc2 {[%clk 0:00:19]}  Re1+ {[%clk 0:00:12]} 45. Kf2 {[%clk 0:00:18]}  Rh1 {[%clk 0:00:12]} 46. Kg2 {[%clk 0:00:17]}  Rc1 {[%clk 0:00:13]} 47. Bb3 {[%clk 0:00:17]}  Rc3 {[%clk 0:00:13]} 48. Bc4 {[%clk 0:00:17]}  h5 {[%clk 0:00:11]} 49. e5 {[%clk 0:00:18]}  fxe5 {[%clk 0:00:11]} 50. fxe5 {[%clk 0:00:18]}  Kf8 {[%clk 0:00:11]} 51. e6 {[%clk 0:00:19]}  Ke7 {[%clk 0:00:11]} 52. Kh3 {[%clk 0:00:19]}  b3 {[%clk 0:00:10]} 53. Nxb3 {[%clk 0:00:18]}  Rxd3+ {[%clk 0:00:05]} 54. Bxd3 {[%clk 0:00:19]}  Kxe6 {[%clk 0:00:06]} 55. Kh4 {[%clk 0:00:19]}  Ke5 {[%clk 0:00:06]} 56. Kxh5 {[%clk 0:00:19]}  Kd5 {[%clk 0:00:07]} 57. Kg5 {[%clk 0:00:19]}  Ke5 {[%clk 0:00:07]} 58. Kg4 {[%clk 0:00:17]}  Kd5 {[%clk 0:00:07]} 59. Kf4 {[%clk 0:00:17]}  Ke6 {[%clk 0:00:07]} 60. Be4 {[%clk 0:00:15]}  Kf6 {[%clk 0:00:08]} 61. Nd4 {[%clk 0:00:14]}  Ke7 {[%clk 0:00:08]} 62. Ke5 {[%clk 0:00:15]}  Kf7 {[%clk 0:00:09]} 63. Bf5 {[%clk 0:00:15]}  Kg7 {[%clk 0:00:09]} 64. Nf3 {[%clk 0:00:12]}  Kf7 {[%clk 0:00:10]} 65. Ng5+ {[%clk 0:00:11]}  Kg7 {[%clk 0:00:11]} 66. Ke6 {[%clk 0:00:11]}  Kh8 {[%clk 0:00:10]} 67. Kf6 {[%clk 0:00:10]}  Kg8 {[%clk 0:00:10]} 68. Nf7 {[%clk 0:00:11]}  Kf8 {[%clk 0:00:09]} 69. Bh7 {[%clk 0:00:11]}  Ke8 {[%clk 0:00:09]} 70. Ne5 {[%clk 0:00:10]}  Kf8 {[%clk 0:00:10]} 71. Nd7+ {[%clk 0:00:07]}  Ke8 {[%clk 0:00:10]} 72. Ke6 {[%clk 0:00:08]}  Kd8 {[%clk 0:00:10]} 73. Kd6 {[%clk 0:00:08]}  Ke8 {[%clk 0:00:10]} 74. Bg6+ {[%clk 0:00:08]}  Kd8 {[%clk 0:00:09]} 75. Bf7 {[%clk 0:00:08]}  Kc8 {[%clk 0:00:09]} 76. Nc5 {[%clk 0:00:08]}  Kd8 {[%clk 0:00:09]} 77. Bg6 {[%clk 0:00:05]}  Kc8 {[%clk 0:00:10]} 78. Kc6 {[%clk 0:00:06]}  Kd8 {[%clk 0:00:10]} 79. Kd6 {[%clk 0:00:06]}  Kc8 {[%clk 0:00:10]} 80. Bh5 {[%clk 0:00:07]}  Kd8 {[%clk 0:00:10]} 81. Nb7+ {[%clk 0:00:07]}  Kc8 {[%clk 0:00:10]} 82. Kc6 {[%clk 0:00:08]}  Kb8 {[%clk 0:00:09]} 83. Bg4 {[%clk 0:00:08]}  Ka8 {[%clk 0:00:09]} 84. Nd6 {[%clk 0:00:08]}  Kb8 {[%clk 0:00:09]} 85. Bf3 {[%clk 0:00:08]}  Ka7 {[%clk 0:00:09]} 86. Be2 {[%clk 0:00:07]}  Kb8 {[%clk 0:00:09]} 87. Kb6 {[%clk 0:00:06]}  Ka8 {[%clk 0:00:09]} 88. Bc4 {[%clk 0:00:06]}  Kb8 {[%clk 0:00:09]} 89. Bb3 {[%clk 0:00:07]}  Ka8 {[%clk 0:00:09]} 90. Be6 {[%clk 0:00:08]}  Kb8 {[%clk 0:00:10]} 91. Nb5 {[%clk 0:00:08]}  Ka8 {[%clk 0:00:09]} 92. Bf5 {[%clk 0:00:08]}  Kb8 {[%clk 0:00:10]} 93. Na7 {[%clk 0:00:05]}  Ka8 {[%clk 0:00:10]} 94. Be4+ {[%clk 0:00:06]}  Kb8 {[%clk 0:00:11]} 95. Bf5 {[%clk 0:00:06]}  Ka8 {[%clk 0:00:11]} 96. Nb5 {[%clk 0:00:06]}  Kb8 {[%clk 0:00:12]} 97. Bh3 {[%clk 0:00:05]}  Ka8 {[%clk 0:00:12]} 98. Bg4 {[%clk 0:00:03]}  Kb8 {[%clk 0:00:12]} 99. Bf5 {[%clk 0:00:03]}  Ka8 {[%clk 0:00:12]} 100. Be4+ {[%clk 0:00:04]}  Kb8 {[%clk 0:00:13]} 101. Bd3 {[%clk 0:00:04]}  Kc8 {[%clk 0:00:14]} 102. Kc6 {[%clk 0:00:04]}  Kd8 {[%clk 0:00:14]} 103. Kd6 {[%clk 0:00:05]}  Ke8 {[%clk 0:00:14]} 104. Bg6+ {[%clk 0:00:05]}  Kf8 {[%clk 0:00:14]} 105. Ke6 {[%clk 0:00:06]}  Kg7 {[%clk 0:00:15]} 106. Be4 {[%clk 0:00:06]} 1/2-1/2


[Site "https://www.chess.com"]

[Event "Titled Tuesday Blitz November 01 Late 2022"]
[White "Szpar, Milosz"]
[Black "Mendez Fortes, Eduardo Jesus"]
[WhiteFideId "1184989"]
[BlackFideId "3502376"]
[WhiteElo "2422"]
[BlackElo "2307"]
[Result "0-1"]
[Round "11"]
[TimeControl "180+1"]
[Date "2022.11.01"]
[WhiteClock "0:01:41"]
[BlackClock "0:00:40"]

1. e4 {[%clk 0:03:00]}  e5 {[%clk 0:02:59]} 2. Nf3 {[%clk 0:03:00]}  Nc6 {[%clk 0:02:59]} 3. Bb5 {[%clk 0:03:00]}  Nf6 {[%clk 0:02:58]} 4. d3 {[%clk 0:02:57]}  Bc5 {[%clk 0:02:58]} 5. c3 {[%clk 0:02:56]}  O-O {[%clk 0:02:57]} 6. O-O {[%clk 0:02:55]}  d6 {[%clk 0:02:57]} 7. Re1 {[%clk 0:02:54]}  Bb6 {[%clk 0:02:57]} 8. Nbd2 {[%clk 0:02:54]}  Ne7 {[%clk 0:02:57]} 9. Nf1 {[%clk 0:02:54]}  Ng6 {[%clk 0:02:57]} 10. Ng3 {[%clk 0:02:54]}  c6 {[%clk 0:02:57]} 11. Ba4 {[%clk 0:02:54]}  Re8 {[%clk 0:02:54]} 12. d4 {[%clk 0:02:51]}  Bg4 {[%clk 0:02:48]} 13. Bc2 {[%clk 0:02:50]}  Bxf3 {[%clk 0:02:43]} 14. gxf3 {[%clk 0:02:50]}  h6 {[%clk 0:02:40]} 15. Nf5 {[%clk 0:02:49]}  Ne7 {[%clk 0:02:32]} 16. Ng3 {[%clk 0:02:49]}  Ng6 {[%clk 0:02:30]} 17. Nf5 {[%clk 0:02:42]}  d5 {[%clk 0:02:30]} 18. dxe5 {[%clk 0:02:33]}  Rxe5 {[%clk 0:02:24]} 19. f4 {[%clk 0:02:33]}  Rxe4 {[%clk 0:02:04]} 20. Bxe4 {[%clk 0:02:30]}  Nxe4 {[%clk 0:02:05]} 21. Be3 {[%clk 0:02:30]}  Qd7 {[%clk 0:01:59]} 22. Qh5 {[%clk 0:02:29]}  Bc7 {[%clk 0:01:46]} 23. Ng3 {[%clk 0:02:28]}  Bxf4 {[%clk 0:01:38]} 24. Rad1 {[%clk 0:02:28]}  Nf6 {[%clk 0:01:32]} 25. Qf5 {[%clk 0:02:27]}  Qc7 {[%clk 0:01:29]} 26. Bd4 {[%clk 0:02:24]}  Ne4 {[%clk 0:01:21]} 27. Nxe4 {[%clk 0:02:24]}  Bxh2+ {[%clk 0:01:18]} 28. Kh1 {[%clk 0:02:25]}  dxe4 {[%clk 0:01:17]} 29. Rxe4 {[%clk 0:02:26]}  Bd6 {[%clk 0:01:16]} 30. Rg1 {[%clk 0:02:24]}  Rd8 {[%clk 0:01:13]} 31. Reg4 {[%clk 0:02:24]}  c5 {[%clk 0:01:11]} 32. Be3 {[%clk 0:02:24]}  Qc6+ {[%clk 0:01:08]} 33. Qe4 {[%clk 0:02:25]}  Qd7 {[%clk 0:01:03]} 34. a4 {[%clk 0:02:16]}  Kh8 {[%clk 0:00:54]} 35. Qd5 {[%clk 0:02:14]}  Re8 {[%clk 0:00:52]} 36. Qh5 {[%clk 0:02:05]}  Re5 {[%clk 0:00:45]} 37. Qh3 {[%clk 0:02:01]}  Qe6 {[%clk 0:00:43]} 38. R4g3 {[%clk 0:01:56]}  Qd5+ {[%clk 0:00:42]} 39. R3g2 {[%clk 0:01:57]}  Rh5 {[%clk 0:00:41]} 40. Qxh5 {[%clk 0:01:40]}  Qxh5+ {[%clk 0:00:42]} 41. Rh2 {[%clk 0:01:41]}  Qxh2# {[%clk 0:00:40]} 0-1


[Site "https://www.chess.com"]

[Event "Titled Tuesday Blitz November 01 Late 2022"]
[White "Tanenbaum, Zachary"]
[Black "Gunduz, Umut Erdem"]
[WhiteFideId "2060850"]
[BlackFideId "6381383"]
[WhiteElo "2175"]
[BlackElo "2182"]
[Result "1-0"]
[Round "11"]
[TimeControl "180+1"]
[Date "2022.11.02"]
[WhiteClock "0:00:28"]
[BlackClock "0:00:03"]

1. e4 {[%clk 0:03:00]}  e5 {[%clk 0:02:59]} 2. Nf3 {[%clk 0:03:01]}  Nc6 {[%clk 0:02:59]} 3. Bc4 {[%clk 0:03:02]}  Nf6 {[%clk 0:02:56]} 4. d3 {[%clk 0:03:02]}  Bc5 {[%clk 0:02:55]} 5. c3 {[%clk 0:03:02]}  O-O {[%clk 0:02:55]} 6. Nbd2 {[%clk 0:03:03]}  d6 {[%clk 0:02:56]} 7. a4 {[%clk 0:03:03]}  a6 {[%clk 0:02:56]} 8. Nf1 {[%clk 0:03:04]}  Re8 {[%clk 0:02:48]} 9. Ng3 {[%clk 0:03:03]}  d5 {[%clk 0:02:44]} 10. exd5 {[%clk 0:03:02]}  Nxd5 {[%clk 0:02:45]} 11. O-O {[%clk 0:03:02]}  Nb6 {[%clk 0:02:33]} 12. Bb3 {[%clk 0:02:39]}  Be6 {[%clk 0:02:28]} 13. Bxe6 {[%clk 0:02:38]}  Rxe6 {[%clk 0:02:29]} 14. Ng5 {[%clk 0:02:36]}  Rg6 {[%clk 0:02:23]} 15. N3e4 {[%clk 0:02:21]}  Be7 {[%clk 0:02:22]} 16. Qh5 {[%clk 0:02:12]}  h6 {[%clk 0:02:21]} 17. Nxf7 {[%clk 0:01:59]}  Kxf7 {[%clk 0:02:22]} 18. f4 {[%clk 0:01:59]}  exf4 {[%clk 0:01:28]} 19. Bxf4 {[%clk 0:01:15]}  Qxd3 {[%clk 0:01:06]} 20. Qf5+ {[%clk 0:01:06]}  Rf6 {[%clk 0:00:41]} 21. Ng5+ {[%clk 0:01:05]}  hxg5 {[%clk 0:00:40]} 22. Qxd3 {[%clk 0:01:05]}  gxf4 {[%clk 0:00:40]} 23. a5 {[%clk 0:01:03]}  Rd8 {[%clk 0:00:39]} 24. Qe4 {[%clk 0:00:54]}  Nd5 {[%clk 0:00:38]} 25. Rad1 {[%clk 0:00:53]}  Bc5+ {[%clk 0:00:20]} 26. Kh1 {[%clk 0:00:52]}  Ne3 {[%clk 0:00:19]} 27. Rxd8 {[%clk 0:00:50]}  Nxd8 {[%clk 0:00:10]} 28. Rxf4 {[%clk 0:00:50]}  c6 {[%clk 0:00:03]} 29. Rxf6+ {[%clk 0:00:45]}  gxf6 {[%clk 0:00:04]} 30. b4 {[%clk 0:00:40]}  Ba7 {[%clk 0:00:04]} 31. Qh7+ {[%clk 0:00:37]}  Ke8 {[%clk 0:00:04]} 32. h4 {[%clk 0:00:33]}  Ng4 {[%clk 0:00:02]} 33. Qg8+ {[%clk 0:00:33]}  Ke7 {[%clk 0:00:02]} 34. Qxg4 {[%clk 0:00:34]}  Nf7 {[%clk 0:00:02]} 35. Qe4+ {[%clk 0:00:30]}  Ne5 {[%clk 0:00:03]} 36. h5 {[%clk 0:00:28]} 1-0


[Site "https://www.chess.com"]

[Event "Titled Tuesday Blitz November 01 Late 2022"]
[White "Urbina Perez, Juan Antonio"]
[Black "Silva, Caio Henrique Angelico"]
[WhiteFideId "2217368"]
[BlackFideId "22777210"]
[WhiteElo "2197"]
[BlackElo "1990"]
[Result "0-1"]
[Round "11"]
[TimeControl "180+1"]
[Date "2022.11.02"]
[WhiteClock "0:00:53"]
[BlackClock "0:00:07"]

1. e4 {[%clk 0:03:00]}  c6 {[%clk 0:02:57]} 2. Nf3 {[%clk 0:02:56]}  d5 {[%clk 0:02:58]} 3. d3 {[%clk 0:02:56]}  g6 {[%clk 0:02:57]} 4. e5 {[%clk 0:02:54]}  Bg7 {[%clk 0:02:57]} 5. d4 {[%clk 0:02:55]}  Bg4 {[%clk 0:02:54]} 6. h3 {[%clk 0:02:55]}  Bxf3 {[%clk 0:02:53]} 7. Qxf3 {[%clk 0:02:56]}  c5 {[%clk 0:02:52]} 8. c3 {[%clk 0:02:56]}  cxd4 {[%clk 0:02:51]} 9. cxd4 {[%clk 0:02:57]}  Nc6 {[%clk 0:02:51]} 10. Bb5 {[%clk 0:02:44]}  e6 {[%clk 0:02:49]} 11. Nc3 {[%clk 0:02:44]}  Ne7 {[%clk 0:02:48]} 12. O-O {[%clk 0:02:44]}  O-O {[%clk 0:02:46]} 13. Bg5 {[%clk 0:02:41]}  Nxd4 {[%clk 0:02:43]} 14. Qd3 {[%clk 0:02:37]}  Nxb5 {[%clk 0:02:41]} 15. Qxb5 {[%clk 0:02:36]}  Bxe5 {[%clk 0:02:27]} 16. Qxb7 {[%clk 0:02:34]}  f6 {[%clk 0:02:23]} 17. Bh6 {[%clk 0:02:29]}  Rf7 {[%clk 0:02:17]} 18. Qa6 {[%clk 0:02:20]}  Nf5 {[%clk 0:02:01]} 19. Bd2 {[%clk 0:02:15]}  Qd6 {[%clk 0:01:55]} 20. Qxd6 {[%clk 0:02:13]}  Bxd6 {[%clk 0:01:56]} 21. Rad1 {[%clk 0:02:13]}  Rb7 {[%clk 0:01:51]} 22. b3 {[%clk 0:02:13]}  Bb4 {[%clk 0:01:50]} 23. Rfe1 {[%clk 0:02:11]}  Kf7 {[%clk 0:01:49]} 24. Na4 {[%clk 0:02:09]}  Bxd2 {[%clk 0:01:46]} 25. Rxd2 {[%clk 0:02:09]}  Rc8 {[%clk 0:01:43]} 26. Rd3 {[%clk 0:01:57]}  Rc2 {[%clk 0:01:34]} 27. a3 {[%clk 0:01:56]}  Rbc7 {[%clk 0:01:32]} 28. b4 {[%clk 0:01:55]}  Rc1 {[%clk 0:01:14]} 29. Rxc1 {[%clk 0:01:51]}  Rxc1+ {[%clk 0:01:14]} 30. Kh2 {[%clk 0:01:52]}  Nd6 {[%clk 0:01:09]} 31. Nc5 {[%clk 0:01:49]}  a5 {[%clk 0:00:57]} 32. Re3 {[%clk 0:01:40]}  e5 {[%clk 0:00:54]} 33. Rd3 {[%clk 0:01:41]}  d4 {[%clk 0:00:52]} 34. Nb3 {[%clk 0:01:41]}  Rc3 {[%clk 0:00:33]} 35. Rxc3 {[%clk 0:01:41]}  dxc3 {[%clk 0:00:34]} 36. Nxa5 {[%clk 0:01:42]}  Nb5 {[%clk 0:00:33]} 37. Nb3 {[%clk 0:01:35]}  Nxa3 {[%clk 0:00:32]} 38. Kg3 {[%clk 0:01:35]}  Ke6 {[%clk 0:00:32]} 39. Kf3 {[%clk 0:01:36]}  Kd5 {[%clk 0:00:33]} 40. Ke3 {[%clk 0:01:36]}  Kc4 {[%clk 0:00:32]} 41. Nc1 {[%clk 0:01:36]}  Nb5 {[%clk 0:00:27]} 42. Ke2 {[%clk 0:01:30]}  e4 {[%clk 0:00:24]} 43. Kd1 {[%clk 0:01:16]}  Kxb4 {[%clk 0:00:21]} 44. f3 {[%clk 0:01:13]}  exf3 {[%clk 0:00:20]} 45. gxf3 {[%clk 0:01:14]}  Kc4 {[%clk 0:00:20]} 46. f4 {[%clk 0:01:15]}  Nd4 {[%clk 0:00:20]} 47. Na2 {[%clk 0:01:13]}  c2+ {[%clk 0:00:17]} 48. Kd2 {[%clk 0:01:10]}  Kb3 {[%clk 0:00:16]} 49. Nc1+ {[%clk 0:01:10]}  Kb2 {[%clk 0:00:16]} 50. Nd3+ {[%clk 0:01:11]}  Kb1 {[%clk 0:00:16]} 51. Ke3 {[%clk 0:01:03]}  Nf5+ {[%clk 0:00:13]} 52. Kd2 {[%clk 0:01:03]}  Ne7 {[%clk 0:00:10]} 53. Nc1 {[%clk 0:00:57]}  Nd5 {[%clk 0:00:09]} 54. f5 {[%clk 0:00:57]}  gxf5 {[%clk 0:00:09]} 55. Nd3 {[%clk 0:00:58]}  f4 {[%clk 0:00:09]} 56. h4 {[%clk 0:00:56]}  f3 {[%clk 0:00:09]} 57. h5 {[%clk 0:00:56]}  f2 {[%clk 0:00:09]} 58. Ke2 {[%clk 0:00:57]}  Nf4+ {[%clk 0:00:07]} 59. Nxf4 {[%clk 0:00:52]}  c1=Q {[%clk 0:00:07]} 60. Kxf2 {[%clk 0:00:53]}  Qxf4+ {[%clk 0:00:07]} 0-1


[Site "https://www.chess.com"]